fUST/lending_fUST_20240114
["ID","MTS","AMOUNT","RATE_DAILY","PERIOD"]
[311510809,1705170642436,-503.20535621,0.00030136,2]
[311510811,1705170642444,-499.54407345,0.00030136,2]
[311510813,1705170642453,-501.56584836,0.00030136,2]
[311510815,1705170642462,-501.23384362,0.00030136,2]
[311510817,1705170642472,-516.06444306,0.00030136,2]
[311510820,1705170642481,-500.0,0.00030136,2]
[311510822,1705170642491,-591.6,0.00030136,2]
[311510824,1705170642500,-500.0,0.00030136,2]
[311510826,1705170642509,-500.0,0.00030136,2]
[311510827,1705170642518,-500.0,0.00030136,2]
[311510829,1705170642527,-500.0,0.00030136,2]
[311510831,1705170642537,-504.47013511,0.00030136,2]
[311510833,1705170642546,-500.0,0.00030136,2]
[311510835,1705170642555,-500.0,0.00030136,2]
[311510838,1705170642567,-500.0,0.00030136,2]
[311510841,1705170642576,-500.0,0.00030136,2]
[311510844,1705170642585,-599.32,0.00030136,2]
[311510847,1705170642594,-500.0,0.00030136,2]
[311510850,1705170642603,-508.3824715,0.00030136,2]
[311510853,1705170642613,-500.0,0.00030136,2]
[311510855,1705170642622,-500.0,0.00030136,2]
[311510858,1705170642631,-500.0,0.00030136,2]
[311510862,1705170642641,-500.0,0.00030136,2]
[311510865,1705170642652,-500.0,0.00030136,2]
[311510868,1705170642661,-500.0,0.00030136,2]
[311510871,1705170642669,-500.0,0.00030136,2]
[311510873,1705170642678,-500.0,0.00030136,2]
[311510876,1705170642686,-500.0,0.00030136,5]
[311510879,1705170642695,-500.0,0.00030136,2]
[311510882,1705170642704,-500.0,0.00030136,2]
[311510885,1705170642713,-2184.46,0.00030136,2]
[311510888,1705170642721,-500.0,0.00030136,2]
[311510891,1705170642731,-500.0,0.00030136,2]
[311510894,1705170642740,-500.0,0.00030136,2]
[311510896,1705170642750,-500.0,0.00030136,2]
[311510898,1705170642759,-500.0,0.00030136,2]
[311510902,1705170642768,-505.54243636,0.00030136,2]
[311510906,1705170642777,-24.12834913,0.00030136,2]
[311510926,1705170642839,-475.87165087,0.00030136,2]
[311510930,1705170642849,-235.71792542,0.00030136,2]
[311510934,1705170642858,-500.0,0.00030136,2]
[311510938,1705170642867,-88.41042371,0.00030136,2]
[311510945,1705170642878,-359.04862008,0.00030136,2]
[311511376,1705170646215,-676.60564268,0.00030135,4]
[311511379,1705170646225,-52.54095621,0.00030136,2]
[311511381,1705170646234,-382.80263534,0.00030136,2]
[311512036,1705170896446,-250.0,0.00026116,2]
[311512037,1705170896467,-505.17,0.00027109,3]
[311512038,1705170896489,-873.04473522,0.00027112,2]
[311512039,1705170896509,-219.04930635,0.00027113,2]
[311512040,1705170896529,-155.02170304,0.00027113,2]
[311512041,1705170896549,-425.16748197,0.00027114,2]
[311512042,1705170896569,-13698.4853674,0.00027118,2]
[311512043,1705170896589,-81086.75247006,0.00027119,2]
[311512044,1705170896611,-6266.90210365,0.00027121,2]
[311512045,1705170896631,-200.38451189,0.00027796,2]
[311512046,1705170896651,-500.0,0.00027894,2]
[311512047,1705170896671,-1112.22182837,0.00027896,2]
[311512048,1705170896691,-976.18563318,0.00027896,2]
[311512049,1705170896711,-214.27020602,0.00028036,2]
[311512050,1705170896732,-200.38451189,0.0002857,2]
[311512051,1705170896754,-24900.0,0.0002863,2]
[311512052,1705170896774,-178.64957771,0.00028859,2]
[311512053,1705170896794,-155.12254681,0.00029,2]
[311512054,1705170896814,-2304.81104845,0.00029,2]
[311512055,1705170896836,-200.38451189,0.00029343,2]
[311512056,1705170896857,-169.13754642,0.00029446,5]
[311512057,1705170896878,-1184.1327432,0.00029485,2]
[311512058,1705170896898,-178.64957771,0.00029694,2]
[311512059,1705170896921,-54.07258877,0.0002983,15]
[311512071,1705170977439,-160.756103,0.00027086,2]
[311512072,1705170977460,-1221.14074006,0.00027086,2]
[311512073,1705170977480,-274.26683262,0.00027087,2]
[311512074,1705170977502,-155.02170304,0.00027088,4]
[311512075,1705170977523,-155.0418613,0.00027089,2]
[311512076,1705170977546,-20871.14682489,0.00027104,2]
[311512077,1705170977569,-7947.14971871,0.00027105,2]
[311512078,1705170977589,-3739.83692248,0.00027106,2]
[311512079,1705170977610,-420.98,0.00027107,3]
[311512080,1705170977630,-8920.6592939,0.00027114,2]
[311512093,1705171053483,-615.80248759,0.0002711,2]
[311512094,1705171053504,-155.02170304,0.0002711,4]
[311512095,1705171053525,-301.43659782,0.00027111,2]
[311512096,1705171053545,-1240.5015561,0.00027111,2]
[311512097,1705171053564,-15888.77749284,0.00027111,2]
[311512098,1705171053586,-7990.7979956,0.00027112,2]
[311512099,1705171053607,-155.02170304,0.00027114,2]
[311512100,1705171053627,-19669.45887816,0.00027116,2]
[311512101,1705171053646,-20836.46606025,0.00027117,2]
[311512102,1705171053666,-897.288225,0.00027187,2]
[311512103,1705171053801,-168.2041749,0.00028684,2]
[311512104,1705171053823,-143.22312566,0.00028724,2]
[311512430,1705171838608,-155.0294556,0.00026698,4]
[311512432,1705171838619,-161.14649141,0.00026699,2]
[311512448,1705171838757,-166.666666,0.00026799,2]
[311512450,1705171838768,-13698.4853674,0.00026891,2]
[311512452,1705171838778,-3649.8510312,0.00026892,2]
[311512454,1705171838787,-417.74425609,0.00027,4]
[311512456,1705171838796,-2927.790761,0.00027092,2]
[311512457,1705171838805,-308.83750787,0.00027114,2]
[311512458,1705171838813,-164.89328971,0.00027119,2]
[311512459,1705171838822,-166.666666,0.00027529,2]
[311512460,1705171838831,-165.8178928,0.00027618,2]
[311512461,1705171838839,-448.644112,0.00027663,2]
[311512462,1705171838848,-1000.0,0.00028,15]
[311512463,1705171838857,-192.84680402,0.00028036,2]
[311512464,1705171838866,-196.36280373,0.00028112,2]
[311512465,1705171838875,-166.666666,0.0002826,2]
[311512466,1705171838884,-3833.1682345,0.00028724,2]
[311512467,1705171838893,-1000.0,0.000289,15]
[311512468,1705171838902,-166.666666,0.0002899,2]
[311512469,1705171838911,-2304.81104845,0.00029314,2]
[311512470,1705171838920,-201.7863371,0.00029315,2]
[311512471,1705171838929,-198.7544661,0.00029315,2]
[311512472,1705171838937,-198.7544661,0.00029315,2]
[311512473,1705171838946,-198.7544661,0.00029315,2]
[311512474,1705171838955,-198.7544661,0.00029315,2]
[311512475,1705171838964,-198.7544661,0.00029315,2]
[311512476,1705171838973,-198.7544661,0.00029315,2]
[311512478,1705171838982,-203.38258483,0.00029426,2]
[311512480,1705171838991,-166.666666,0.00029721,2]
[311512482,1705171839000,-200.0,0.00029799,15]
[311512484,1705171839010,-156.66039464,0.00029829,2]
[311512486,1705171839019,-1018.6437214,0.0002983,2]
[311512488,1705171839029,-4168.01043791,0.0002983,3]
[311512490,1705171839038,-5371.54803427,0.00029831,2]
[311512492,1705171839047,-500.0,0.0003,3]
[311512494,1705171839057,-233.0,0.0003,2]
[311512496,1705171839066,-687.09987426,0.0003,4]
[311512498,1705171839075,-200.38451189,0.00030034,2]
[311512500,1705171839084,-4904.88520327,0.00030036,2]
[311512502,1705171839093,-200.38451189,0.00030036,2]
[311512504,1705171839102,-225.75,0.00030122,3]
[311512506,1705171839111,-154.44,0.00030123,3]
[311512508,1705171839120,-325.07,0.00030123,3]
[311512510,1705171839129,-270.89,0.00030123,3]
[311512512,1705171839139,-4855.78171743,0.00030131,4]
[311512514,1705171839148,-2708.97417906,0.00030132,4]
[311512516,1705171839157,-155.36019494,0.00030132,2]
[311512518,1705171839166,-158.13794531,0.00030132,4]
[311512520,1705171839175,-285.28836048,0.00030132,4]
[311512522,1705171839184,-309.69031278,0.00030132,4]
[311512524,1705171839193,-469.54906413,0.00030132,2]
[311512526,1705171839202,-901.83243089,0.00030132,4]
[311512528,1705171839211,-1002.6997903,0.00030132,4]
[311512530,1705171839220,-155.0418613,0.00030132,4]
[311512532,1705171839228,-689.77453039,0.00030132,4]
[311512534,1705171839237,-432.16105973,0.00030132,2]
[311512536,1705171839246,-155.32752112,0.00030132,4]
[311512538,1705171839256,-553.98987834,0.00030132,2]
[311512540,1705171839266,-874.79068657,0.00030132,4]
[311512542,1705171839274,-155.0418613,0.00030132,4]
[311512544,1705171839283,-155.0418613,0.00030132,4]
[311512546,1705171839292,-236.42587517,0.00030132,4]
[311512548,1705171839301,-1989.87267074,0.00030132,4]
[311512550,1705171839310,-525.71054623,0.00030132,4]
[311512552,1705171839319,-1291.19265067,0.00030132,4]
[311512554,1705171839328,-166.35364662,0.00030132,4]
[311512556,1705171839337,-162.78960189,0.00030132,4]
[311512558,1705171839346,-309.70579883,0.00030132,4]
[311512560,1705171839355,-28333.65550506,0.00030133,4]
[311512562,1705171839364,-19893.89006696,0.00030134,2]
[311512564,1705171839374,-160.67795326,0.00030134,4]
[311512566,1705171839383,-5134.71110403,0.00030134,2]
[311512568,1705171839392,-946.32689261,0.00030134,4]
[311512570,1705171839401,-246.867047,0.00030134,2]
[311512572,1705171839411,-246.867047,0.00030134,2]
[311512574,1705171839420,-151.0,0.00030134,2]
[311512576,1705171839428,-1051.512592,0.00030134,2]
[311512578,1705171839437,-1051.512592,0.00030134,2]
[311512580,1705171839447,-309.62844586,0.00030134,4]
[311512582,1705171839456,-855.96729091,0.00030134,4]
[311512584,1705171839465,-198.15982049,0.00030134,4]
[311512586,1705171839474,-285.00006318,0.00030134,4]
[311512588,1705171839483,-2805.88372059,0.00030134,4]
[311512590,1705171839492,-553.89631554,0.00030134,4]
[311512592,1705171839500,-309.62844586,0.00030134,4]
[311512594,1705171839509,-586.93974545,0.00030134,4]
[311512596,1705171839518,-1171.6067119,0.00030134,4]
[311512598,1705171839528,-1585.54000309,0.00030134,4]
[311512600,1705171839536,-176.02734201,0.00030134,4]
[311512602,1705171839545,-155.29263268,0.00030134,4]
[311512604,1705171839554,-297.22918771,0.00030134,4]
[311512606,1705171839563,-250.760786,0.00030134,4]
[311512608,1705171839572,-247.01682393,0.00030134,4]
[311512610,1705171839581,-223.22198535,0.00030134,4]
[311512612,1705171839591,-565.89100073,0.00030134,4]
[311512614,1705171839600,-1239.75137896,0.00030134,4]
[311512616,1705171839608,-7986.24740238,0.00030134,4]
[311512618,1705171839618,-15858.45625892,0.00030134,4]
[311512620,1705171839627,-10729.36599153,0.00030134,4]
[311512622,1705171839637,-301.26866618,0.00030134,4]
[311512624,1705171839646,-1194.84695345,0.00030135,4]
[311512626,1705171839655,-1609.52949329,0.00030135,4]
[311512628,1705171839664,-500.0,0.00030135,2]
[311512630,1705171839675,-475.2629806,0.00030135,2]
[311512632,1705171839684,-500.0,0.00030135,2]
[311512634,1705171839693,-531.81995445,0.00030135,2]
[311512637,1705171839702,-500.0,0.00030135,2]
[311512640,1705171839711,-500.0,0.00030135,2]
[311512643,1705171839720,-500.0,0.00030135,2]
[311512646,1705171839730,-500.0,0.00030135,2]
[311512649,1705171839738,-500.0,0.00030135,2]
[311512652,1705171839747,-500.0,0.00030135,2]
[311512654,1705171839756,-441.61664923,0.00030135,2]
[311512657,1705171839766,-381.57678203,0.00030135,2]
[311512660,1705171839774,-500.0,0.00030135,2]
[311512663,1705171839783,-500.0,0.00030135,2]
[311512666,1705171839793,-248.8429943,0.00030135,2]
[311512669,1705171839802,-500.0,0.00030135,2]
[311512672,1705171839811,-523.18686771,0.00030135,2]
[311512675,1705171839819,-334.50251997,0.00030135,2]
[311512678,1705171839828,-500.0,0.00030135,2]
[311512681,1705171839837,-500.0,0.00030135,2]
[311512684,1705171839846,-500.0,0.00030135,2]
[311512687,1705171839855,-500.0,0.00030135,2]
[311512690,1705171839864,-500.0,0.00030135,2]
[311512693,1705171839873,-500.0,0.00030135,2]
[311512696,1705171839882,-500.0,0.00030135,2]
[311512699,1705171839891,-500.0,0.00030135,2]
[311512702,1705171839901,-285.74274844,0.00030135,2]
[311512705,1705171839910,-500.0,0.00030135,2]
[311512708,1705171839919,-500.0,0.00030135,2]
[311512711,1705171839928,-500.0,0.00030135,2]
[311512714,1705171839936,-500.0,0.00030135,2]
[311512717,1705171839945,-500.0,0.00030135,2]
[311512720,1705171839954,-600.0,0.00030135,2]
[311512722,1705171839963,-500.0,0.00030135,2]
[311512724,1705171839972,-500.0,0.00030135,2]
[311512726,1705171839981,-500.0,0.00030135,2]
[311512728,1705171839989,-500.0,0.00030135,2]
[311512730,1705171839998,-500.0,0.00030135,2]
[311512732,1705171840007,-500.0,0.00030135,2]
[311512734,1705171840016,-500.0,0.00030135,2]
[311512736,1705171840025,-500.0,0.00030135,2]
[311512738,1705171840034,-500.0,0.00030135,2]
[311512740,1705171840043,-500.0,0.00030135,2]
[311512742,1705171840052,-500.0,0.00030135,2]
[311512744,1705171840061,-500.0,0.00030135,2]
[311512746,1705171840069,-500.0,0.00030135,2]
[311512748,1705171840078,-500.0,0.00030135,2]
[311512749,1705171840087,-500.0,0.00030135,2]
[311512751,1705171840096,-343.81904044,0.00030135,2]
[311512754,1705171840106,-500.0,0.00030135,2]
[311512756,1705171840115,-500.0,0.00030135,2]
[311512758,1705171840124,-500.0,0.00030135,2]
[311512760,1705171840133,-500.0,0.00030135,2]
[311512761,1705171840142,-500.0,0.00030135,2]
[311512764,1705171840151,-377.00374618,0.00030135,2]
[311512766,1705171840160,-500.0,0.00030135,2]
[311512768,1705171840169,-500.0,0.00030135,2]
[311512769,1705171840178,-500.0,0.00030135,2]
[311512771,1705171840187,-500.0,0.00030135,2]
[311512773,1705171840196,-500.0,0.00030135,2]
[311512775,1705171840205,-500.0,0.00030135,2]
[311512778,1705171840214,-210.9547601,0.00030135,2]
[311512780,1705171840224,-1051.512592,0.00030135,2]
[311512781,1705171840233,-1051.512592,0.00030135,2]
[311512783,1705171840242,-246.867047,0.00030136,2]
[311512785,1705171840252,-246.867047,0.00030136,2]
[311512787,1705171840261,-246.867047,0.00030136,2]
[311512789,1705171840272,-246.867047,0.00030136,2]
[311512792,1705171840282,-246.867047,0.00030136,2]
[311512793,1705171840291,-246.867047,0.00030136,2]
[311512796,1705171840301,-246.867047,0.00030136,2]
[311512797,1705171840310,-246.867047,0.00030136,2]
[311512799,1705171840319,-246.867047,0.00030136,2]
[311512801,1705171840328,-246.867047,0.00030136,2]
[311512803,1705171840338,-246.867047,0.00030136,2]
[311512805,1705171840347,-246.867047,0.00030136,2]
[311512807,1705171840357,-151.0,0.00030136,2]
[311512809,1705171840366,-213.17636802,0.00030136,2]
[311512812,1705171840375,-1051.512592,0.00030136,2]
[311512814,1705171840386,-1051.512592,0.00030136,2]
[311512816,1705171840395,-1051.512592,0.00030136,2]
[311512817,1705171840404,-1051.512592,0.00030136,2]
[311512819,1705171840414,-1051.512592,0.00030136,2]
[311512822,1705171840423,-1051.512592,0.00030136,2]
[311512823,1705171840433,-1051.512592,0.00030136,2]
[311512825,1705171840442,-1051.512592,0.00030136,2]
[311512827,1705171840451,-1051.512592,0.00030136,2]
[311512828,1705171840461,-1051.512592,0.00030136,2]
[311512830,1705171840470,-1051.512592,0.00030136,2]
[311512832,1705171840479,-1051.512592,0.00030136,2]
[311512834,1705171840488,-1051.512592,0.00030136,2]
[311512836,1705171840497,-1051.512592,0.00030136,2]
[311512838,1705171840506,-1051.512592,0.00030136,2]
[311512840,1705171840518,-1051.512597,0.00030136,2]
[311512842,1705171840528,-200.0,0.00030136,2]
[311512844,1705171840537,-200.17352857,0.00030136,2]
[311512846,1705171840546,-1822.05331204,0.00030136,2]
[311512848,1705171840555,-10281.69514377,0.00030136,4]
[311512850,1705171840564,-546.87419273,0.00030136,4]
[311512852,1705171840574,-403.9372472,0.00030136,3]
[311512854,1705171840583,-3212.52525196,0.00030136,4]
[311512856,1705171840592,-650.05490784,0.00030136,4]
[311512858,1705171840601,-502.04178712,0.00030136,2]
[311512860,1705171840610,-500.0,0.00030136,2]
[311512862,1705171840620,-500.0,0.00030136,2]
[311512864,1705171840629,-500.0,0.00030136,2]
[311512866,1705171840638,-500.0,0.00030136,2]
[311512868,1705171840647,-500.0,0.00030136,2]
[311512870,1705171840656,-500.0,0.00030136,2]
[311512872,1705171840666,-579.03236955,0.00030136,2]
[311512874,1705171840679,-500.0,0.00030136,2]
[311512876,1705171840688,-500.0,0.00030136,2]
[311512878,1705171840697,-511.57846325,0.00030136,2]
[311512880,1705171840706,-500.44765468,0.00030136,2]
[311512882,1705171840716,-163.83594978,0.00030136,2]
[311512884,1705171840725,-500.0,0.00030136,2]
[311512885,1705171840734,-500.0,0.00030136,2]
[311512887,1705171840744,-500.0,0.00030136,2]
[311512889,1705171840753,-500.0,0.00030136,2]
[311512891,1705171840762,-500.0,0.00030136,2]
[311512893,1705171840775,-500.0,0.00030136,2]
[311512895,1705171840784,-500.0,0.00030136,2]
[311512897,1705171840793,-500.0,0.00030136,2]
[311512899,1705171840802,-500.0,0.00030136,2]
[311512901,1705171840811,-500.0,0.00030136,2]
[311512903,1705171840820,-500.0,0.00030136,2]
[311512905,1705171840829,-500.0,0.00030136,2]
[311512907,1705171840837,-593.71534859,0.00030136,2]
[311512909,1705171840846,-500.56087616,0.00030136,2]
[311512911,1705171840856,-504.76874459,0.00030136,2]
[311512913,1705171840865,-502.37159956,0.00030136,2]
[311512915,1705171840874,-500.0,0.00030136,2]
[311512917,1705171840883,-500.0,0.00030136,2]
[311512919,1705171840892,-500.0,0.00030136,2]
[311512921,1705171840901,-500.0,0.00030136,2]
[311512923,1705171840910,-501.77588995,0.00030136,2]
[311512925,1705171840919,-500.0,0.00030136,2]
[311512927,1705171840927,-500.0,0.00030136,2]
[311512929,1705171840937,-500.0,0.00030136,2]
[311512931,1705171840946,-384.34754653,0.00030136,2]
[311512933,1705171840955,-1000.0,0.00030136,2]
[311512935,1705171840965,-505.86739825,0.00030136,2]
[311512937,1705171840974,-500.0,0.00030136,2]
[311512938,1705171840983,-506.42096074,0.00030136,2]
[311512940,1705171840992,-500.0,0.00030136,2]
[311512942,1705171841001,-503.11839211,0.00030136,2]
[311512944,1705171841011,-532.25318278,0.00030136,2]
[311512946,1705171841023,-548.22378841,0.00030136,2]
[311512948,1705171841032,-154.90705577,0.00030136,2]
[311512950,1705171841041,-508.91760067,0.00030136,2]
[311512952,1705171841050,-500.0,0.00030136,2]
[311512954,1705171841059,-500.0,0.00030136,2]
[311512956,1705171841068,-500.0,0.00030136,2]
[311512958,1705171841077,-525.36971416,0.00030136,2]
[311512960,1705171841086,-500.0,0.00030136,2]
[311512961,1705171841095,-234.99010687,0.00030136,2]
[311512963,1705171841104,-507.70977075,0.00030136,2]
[311512965,1705171841113,-571.01283016,0.00030136,2]
[311512967,1705171841122,-500.0,0.00030136,2]
[311512969,1705171841131,-370.49411129,0.00030136,2]
[311512971,1705171841141,-500.0,0.00030136,2]
[311512973,1705171841149,-500.0,0.00030136,2]
[311512975,1705171841158,-500.0,0.00030136,2]
[311512976,1705171841167,-500.0,0.00030136,2]
[311512978,1705171841176,-546.82268958,0.00030136,2]
[311512980,1705171841187,-500.0,0.00030136,2]
[311512982,1705171841196,-393.2744873,0.00030136,2]
[311512984,1705171841205,-500.0,0.00030136,2]
[311512986,1705171841214,-500.0,0.00030136,2]
[311512997,1705171841305,-500.0,0.00030136,2]
[311512998,1705171841314,-500.0,0.00030136,2]
[311513000,1705171841323,-500.0,0.00030136,2]
[311513002,1705171841332,-500.0,0.00030136,2]
[311513004,1705171841341,-500.0,0.00030136,2]
[311513006,1705171841350,-500.0,0.00030136,2]
[311513008,1705171841359,-186.76567446,0.00030136,2]
[311513010,1705171841367,-502.03988477,0.00030136,2]
[311513012,1705171841376,-464.33699681,0.00030136,2]
[311513014,1705171841385,-500.0,0.00030136,2]
[311513016,1705171841394,-500.0,0.00030136,2]
[311513018,1705171841403,-500.0,0.00030136,2]
[311513020,1705171841411,-500.0,0.00030136,2]
[311513022,1705171841420,-500.0,0.00030136,2]
[311513024,1705171841429,-500.0,0.00030136,2]
[311513026,1705171841438,-500.0,0.00030136,2]
[311513028,1705171841447,-500.0,0.00030136,2]
[311513030,1705171841456,-163.86133899,0.00030136,2]
[311513031,1705171841464,-500.0,0.00030136,2]
[311513033,1705171841473,-160.96928332,0.00030136,2]
[311513035,1705171841482,-500.0,0.00030136,2]
[311513037,1705171841492,-558.27371672,0.00030136,2]
[311513039,1705171841500,-500.0,0.00030136,2]
[311513041,1705171841509,-500.0,0.00030136,2]
[311513043,1705171841520,-476.36050445,0.00030136,2]
[311513045,1705171841530,-500.0,0.00030136,2]
[311513047,1705171841539,-500.0,0.00030136,2]
[311513049,1705171841548,-501.10374369,0.00030136,2]
[311513051,1705171841558,-500.0,0.00030136,2]
[311513053,1705171841567,-500.0,0.00030136,2]
[311513055,1705171841576,-500.0,0.00030136,2]
[311513057,1705171841585,-301.39905633,0.00030136,2]
[311513059,1705171841594,-500.0,0.00030136,2]
[311513061,1705171841603,-518.02152868,0.00030136,2]
[311513063,1705171841612,-500.0,0.00030136,2]
[311513065,1705171841621,-502.36275141,0.00030136,2]
[311513067,1705171841631,-500.0,0.00030136,2]
[311513069,1705171841640,-504.98512044,0.00030136,2]
[311513071,1705171841648,-500.0,0.00030136,2]
[311513073,1705171841657,-500.0,0.00030136,2]
[311513074,1705171841667,-510.36177709,0.00030136,2]
[311513076,1705171841679,-500.0,0.00030136,2]
[311513078,1705171841688,-500.0,0.00030136,2]
[311513080,1705171841697,-500.0,0.00030136,2]
[311513082,1705171841706,-510.34306805,0.00030136,2]
[311513084,1705171841715,-500.0,0.00030136,2]
[311513086,1705171841724,-593.5093028,0.00030136,2]
[311513089,1705171841739,-204.94596919,0.00030136,2]
[311513091,1705171841749,-500.0,0.00030136,2]
[311513093,1705171841758,-208.84713893,0.00030136,2]
[311513095,1705171841770,-500.72509967,0.00030136,2]
[311513097,1705171841782,-178.37434391,0.00030136,2]
[311513099,1705171841791,-500.0,0.00030136,2]
[311513101,1705171841800,-500.0,0.00030136,2]
[311513103,1705171841810,-500.0,0.00030136,2]
[311513105,1705171841819,-503.26576196,0.00030136,2]
[311513107,1705171841828,-533.92341691,0.00030136,2]
[311513109,1705171841837,-502.76389205,0.00030136,2]
[311513110,1705171841845,-500.0,0.00030136,2]
[311513112,1705171841855,-505.6647202,0.00030136,2]
[311513114,1705171841864,-500.0,0.00030136,2]
[311513116,1705171841872,-500.0,0.00030136,2]
[311513118,1705171841881,-500.85367027,0.00030136,2]
[311513120,1705171841890,-500.0,0.00030136,2]
[311513122,1705171841898,-500.0,0.00030136,2]
[311513124,1705171841908,-500.0,0.00030136,2]
[311513126,1705171841917,-501.93142578,0.00030136,2]
[311513128,1705171841926,-500.0,0.00030136,2]
[311513130,1705171841935,-500.0,0.00030136,2]
[311513132,1705171841944,-449.38230896,0.00030136,2]
[311513134,1705171841953,-510.93305665,0.00030136,2]
[311513136,1705171841961,-512.41301664,0.00030136,2]
[311513138,1705171841970,-616.84550266,0.00030136,2]
[311513140,1705171841979,-500.0,0.00030136,2]
[311513142,1705171841989,-500.0,0.00030136,2]
[311513144,1705171841998,-501.49196383,0.00030136,2]
[311513146,1705171842007,-500.72640144,0.00030136,2]
[311513148,1705171842018,-501.99211654,0.00030136,2]
[311513149,1705171842027,-520.62787952,0.00030136,2]
[311513151,1705171842036,-500.0,0.00030136,2]
[311513153,1705171842045,-500.0,0.00030136,2]
[311513155,1705171842054,-501.3256704,0.00030136,2]
[311513157,1705171842063,-473.89489476,0.00030136,2]
[311513159,1705171842072,-500.0,0.00030136,2]
[311513161,1705171842081,-527.20807009,0.00030136,2]
[311513163,1705171842090,-500.0,0.00030136,2]
[311513165,1705171842099,-505.83321707,0.00030136,2]
[311513167,1705171842108,-500.0,0.00030136,2]
[311513169,1705171842117,-566.17678789,0.00030136,2]
[311513171,1705171842126,-500.0,0.00030136,2]
[311513173,1705171842135,-500.0,0.00030136,2]
[311513175,1705171842144,-500.0,0.00030136,2]
[311513177,1705171842153,-500.0,0.00030136,2]
[311513179,1705171842162,-503.59532342,0.00030136,2]
[311513181,1705171842171,-500.0,0.00030136,2]
[311513183,1705171842179,-643.11957261,0.00030136,2]
[311513185,1705171842188,-577.5987334,0.00030136,2]
[311513187,1705171842197,-500.0,0.00030136,2]
[311513189,1705171842205,-585.98799559,0.00030136,2]
[311513191,1705171842214,-500.65301249,0.00030136,2]
[311513192,1705171842223,-500.0,0.00030136,2]
[311513194,1705171842232,-500.0,0.00030136,2]
[311513196,1705171842241,-500.0,0.00030136,2]
[311513198,1705171842250,-500.0,0.00030136,2]
[311513200,1705171842259,-500.39631594,0.00030136,2]
[311513202,1705171842270,-500.0,0.00030136,2]
[311513204,1705171842279,-500.0,0.00030136,2]
[311513206,1705171842288,-331.22561931,0.00030136,2]
[311513208,1705171842297,-500.0,0.00030136,2]
[311513210,1705171842305,-501.16418846,0.00030136,2]
[311513212,1705171842314,-500.0,0.00030136,2]
[311513214,1705171842324,-500.0,0.00030136,2]
[311513216,1705171842333,-500.76884476,0.00030136,2]
[311513218,1705171842342,-500.0,0.00030136,2]
[311513220,1705171842351,-504.39363086,0.00030136,2]
[311513222,1705171842360,-500.0,0.00030136,2]
[311513224,1705171842369,-500.0,0.00030136,2]
[311513226,1705171842378,-612.22398085,0.00030136,2]
[311513228,1705171842387,-500.0,0.00030136,2]
[311513230,1705171842396,-502.73708819,0.00030136,2]
[311513232,1705171842405,-500.0,0.00030136,2]
[311513234,1705171842414,-500.0,0.00030136,2]
[311513236,1705171842422,-500.0,0.00030136,2]
[311513238,1705171842431,-257.36125828,0.00030136,2]
[311513240,1705171842440,-500.0,0.00030136,2]
[311513242,1705171842449,-500.0,0.00030136,2]
[311513244,1705171842458,-501.71054968,0.00030136,2]
[311513245,1705171842467,-502.08749637,0.00030136,2]
[311513247,1705171842476,-500.0,0.00030136,2]
[311513249,1705171842486,-500.0,0.00030136,2]
[311513251,1705171842494,-500.77925738,0.00030136,2]
[311513253,1705171842503,-500.0,0.00030136,2]
[311513255,1705171842512,-500.0,0.00030136,2]
[311513257,1705171842523,-500.0,0.00030136,2]
[311513259,1705171842532,-203.42129905,0.00030136,2]
[311513261,1705171842541,-500.0,0.00030136,2]
[311513263,1705171842550,-500.0,0.00030136,2]